Workbook

Sheet Start
B2: ABOUT THIS TEMPLATE
B3: Use this event budget workbook to track expenses incurred on and income earned from an event.
B4: Enter details in tables in expenses worksheet and income worksheet.
B5: Total expenses and total income are auto-calculated.
B6: Profit & loss summary and chart are auto-updated in profit-loss summary worksheet.
B7: Note:
B8: Additional instructions have been provided in column A in each worksheet. This text has been intentionally hidden. To remove text, select column A, then select DELETE.
B9: To learn more about tables, press SHIFT and then F10 within a table, select the TABLE option, and then select ALTERNATIVE TEXT

Sheet Expenses
B2: Event budget | H2: EXPENSES
B4: TOTAL EXPENSES | G4: Estimated | H4: Actual
G5: =SUM(C12,C20,C26,C33,G12,G20,G25) -> $882.00 | H5: =SUM(D12,D20,D26,D33,H12,H20,H25) -> $333.00
B7: Site | C7: Estimated | D7: Actual | F7: Refreshments | G7: Estimated | H7: Actual
B8: Room and hall fees | C8: $500.00 | F8: Food
B9: Site staff | F9: Drinks | G9: $20.00
B10: Equipment | F10: Linens | H10: $20.00
B11: Tables and chairs | F11: Staff and gratuities
B12: Total | C12: =SUBTOTAL(109,SiteExpenses[Estimated]) -> $500.00 | D12: =SUBTOTAL(109,SiteExpenses[Actual]) -> $0.00 | F12: Total | G12: =SUBTOTAL(109,RefreshmentsExpenses[Estimated]) -> $20.00 | H12: =SUBTOTAL(109,RefreshmentsExpenses[Actual]) -> $20.00
B14: Decorations | C14: Estimated | D14: Actual | F14: Program | G14: Estimated | H14: Actual
B15: Flowers | C15: $200.00 | D15: $300.00 | F15: Performers
B16: Candles | F16: Speakers | G16: $30.00
B17: Lighting | F17: Travel
B18: Balloons | F18: Hotel
B19: Paper supplies | F19: Other
B20: Total | C20: =SUBTOTAL(109,DecorationsExpenses[Estimated]) -> $200.00 | D20: =SUBTOTAL(109,DecorationsExpenses[Actual]) -> $300.00 | F20: Total | G20: =SUBTOTAL(109,ProgramExpenses[Estimated]) -> $30.00 | H20: =SUBTOTAL(109,ProgramExpenses[Actual]) -> $0.00
B22: Publicity | C22: Estimated | D22: Actual | F22: Prizes | G22: Estimated | H22: Actual
B23: Graphics work | F23: Ribbons/Plaques/Trophies
B24: Photocopying/Printing | C24: $20.00 | F24: Gifts | G24: $100.00
B25: Postage | F25: Total | G25: =SUBTOTAL(109,PrizesExpenses[Estimated]) -> $100.00 | H25: =SUBTOTAL(109,PrizesExpenses[Actual]) -> $0.00
B26: Total | C26: =SUBTOTAL(109,PublicityExpenses[Estimated]) -> $20.00 | D26: =SUBTOTAL(109,PublicityExpenses[Actual]) -> $0.00
B28: Miscellaneous | C28: Estimated | D28: Actual
B29: Telephone | D29: $13.00
B30: Transportation | C30: $12.00
B31: Stationery supplies
B32: Fax services
B33: Total | C33: =SUBTOTAL(109,MiscellaneousExpenses[Estimated]) -> $12.00 | D33: =SUBTOTAL(109,MiscellaneousExpenses[Actual]) -> $13.00

Sheet Income
B2: =Expenses!B2 -> Event budget | G2: INCOME
B4: TOTAL INCOME | F4: Estimated | G4: Actual
F5: =SUM(Admissions[[#Totals],[Estimated income]],AdsInProgram[[#Totals],[Estimated income]],ExhibitorsAndVendors[[#Totals],[Estimated income]],SaleOfItems[[#Totals],[Estimated income]]) -> $1,936.00 | G5: =SUM(Admissions[[#Totals],[Actual income]],AdsInProgram[[#Totals],[Actual income]],ExhibitorsAndVendors[[#Totals],[Actual income]],SaleOfItems[[#Totals],[Actual income]]) -> $1,831.00
B7: ADMISSIONS
B8: Estimated no. | C8: Actual no. | D8: Type | E8: Price | F8: Estimated income | G8: Actual income
B9: 300 | C9: 278 | D9: Adults @ | E9: $5.00 | F9: =B9*E9 -> $1,500.00 | G9: =C9*E9 -> $1,390.00
B10: 197 | C10: 195 | D10: Children @ | E10: $2.00 | F10: =B10*E10 -> $394.00 | G10: =C10*E10 -> $390.00
B11: 42 | C11: 51 | D11: Other @ | E11: $1.00 | F11: =B11*E11 -> $42.00 | G11: =C11*E11 -> $51.00
B12: Total | F12: =SUBTOTAL(109,Admissions[Estimated income]) -> $1,936.00 | G12: =SUBTOTAL(109,Admissions[Actual income]) -> $1,831.00
B14: ADS IN PROGRAM
B15: Estimated no. | C15: Actual no. | D15: Type | E15: Price | F15: Estimated income | G15: Actual income
D16: Covers @ | F16: =B16*E16 -> $0.00 | G16: =C16*E16 -> $0.00
D17: Half-pages @ | F17: =B17*E17 -> $0.00 | G17: =C17*E17 -> $0.00
D18: Quarter-pages @ | F18: =B18*E18 -> $0.00 | G18: =C18*E18 -> $0.00
B19: Total | F19: =SUBTOTAL(109,AdsInProgram[Estimated income]) -> $0.00 | G19: =SUBTOTAL(109,AdsInProgram[Actual income]) -> $0.00
B21: EXHIBITORS/VENDORS
B22: Estimated no. | C22: Actual no. | D22: Type | E22: Price | F22: Estimated income | G22: Actual income
D23: Large booths @ | F23: =B23*E23 -> $0.00 | G23: =C23*E23 -> $0.00
D24: Med. booths @ | F24: =B24*E24 -> $0.00 | G24: =C24*E24 -> $0.00
D25: Small booths @ | F25: =B25*E25 -> $0.00 | G25: =C25*E25 -> $0.00
B26: Total | F26: =SUBTOTAL(109,ExhibitorsAndVendors[Estimated income]) -> $0.00 | G26: =SUBTOTAL(109,ExhibitorsAndVendors[Actual income]) -> $0.00
B28: SALE OF ITEMS
B29: Estimated no. | C29: Actual no. | D29: Type | E29: Price | F29: Estimated income | G29: Actual income
D30: Items @ | F30: =B30*E30 -> $0.00 | G30: =C30*E30 -> $0.00
D31: Items @ | F31: =B31*E31 -> $0.00 | G31: =C31*E31 -> $0.00
D32: Items @ | F32: =B32*E32 -> $0.00 | G32: =C32*E32 -> $0.00
D33: Items @ | F33: =B33*E33 -> $0.00 | G33: =C33*E33 -> $0.00
B34: Total | F34: =SUBTOTAL(109,SaleOfItems[Estimated income]) -> $0.00 | G34: =SUBTOTAL(109,SaleOfItems[Actual income]) -> $0.00

Sheet Profit-loss Summary
B2: =Expenses!B2 -> Event budget | G2: PROFIT
B4: LOSS SUMMARY
B7: Total | C7: Estimated | D7: Actual
B8: Total income | C8: =Income!F5 -> $1,936.00 | D8: =Income!G5 -> $1,831.00
B9: Total expenses | C9: =Expenses!G5 -> $882.00 | D9: =Expenses!H5 -> $333.00
B10: Total profit (or loss) | C10: =C8-C9 -> $1,054.00 | D10: =D8-D9 -> $1,498.00
